bitfinex-derivatives/quotes_ETHF0:USTF0_20210403
["timestamp","ask_amount","ask_price","bid_price","bid_amount"]
[1617477319582,2.90695,2073.2,2073.0,0.14623522]
[1617477319784,2.90695,2073.2,2072.9,0.14624815]
[1617477319984,2.90695,2073.2,2073.1,0.14622424]
[1617477320384,2.90695,2073.2,2072.9,0.14623933]
[1617477320585,2.90695,2073.2,2073.1,0.14629192]
[1617477320987,2.90695,2073.2,2072.9,0.14632456]
[1617477321386,2.90695,2073.2,2072.8,10.19491677]
[1617477321589,2.90695,2073.2,2073.1,8.98909446]
[1617477321889,2.90695,2073.2,2073.1,9.13549998]
[1617477322090,2.90695,2073.2,2072.7,10.04663498]
[1617477322390,2.90695,2073.2,2072.0,2.90695]
[1617477322890,2.90695,2072.1,2072.0,2.90695]
[1617477323090,30.0,2073.6,2072.0,2.90695]
[1617477323590,30.0,2073.6,2073.2,7.91494378]
[1617477323991,31.8141,2073.6,2073.1,7.91623675]
[1617477324392,31.8141,2073.6,2073.5,6.85869289]
[1617477324893,34.72105,2073.6,2073.5,6.85869289]
[1617477325292,34.72105,2073.6,2073.5,4.95249289]
[1617477325992,2.90695,2073.6,2073.5,4.95249289]
[1617477326193,2.90695,2073.6,2073.4,1.9613]
[1617477326392,2.90695,2073.6,2073.4,9.86491907]
[1617477326591,61.1047,2074.9,2073.4,9.86491907]
[1617477326793,61.1047,2074.9,2073.4,1.9613]
[1617477326991,61.1047,2074.9,2073.9,5.23045]
[1617477327395,61.1047,2074.9,2074.0,8.04578999]
[1617477327893,61.1047,2074.9,2074.1,8.04392019]
[1617477328393,61.1047,2074.9,2074.2,0.14187184]
[1617477328995,3.88375,2074.3,2074.2,0.14187184]
[1617477329395,2.90695,2074.3,2074.2,0.14187184]
[1617477329595,0.9577,2075.6,2074.2,8.03905005]
[1617477329796,0.9577,2075.6,2074.2,2.20907184]
[1617477330098,0.9577,2075.6,2074.6,7.88849403]
[1617477330600,0.9577,2075.6,2074.7,10.20932629]
[1617477330898,2.90695,2074.8,2074.7,10.20932629]
[1617477331100,2.90695,2074.8,2074.7,10.06827303]
[1617477331302,2.90695,2074.8,2074.7,10.20932837]
[1617477331599,2.90695,2074.8,2074.7,2.32375534]
[1617477331799,2.90695,2074.8,2074.7,0.14105534]
[1617477333601,2.90695,2074.8,2074.5,7.88310951]
[1617477333901,2.90695,2074.8,2074.3,7.88517487]
[1617477334303,2.90695,2074.8,2074.4,0.14106971]
[1617477334502,2.90695,2074.8,2074.4,8.02966771]
[1617477334906,2.90695,2074.5,2074.4,8.02966771]
[1617477335105,2.90695,2074.5,2074.4,7.888598]
[1617477335304,2.90695,2074.5,2074.4,0.14106346]
[1617477335705,2.90695,2074.5,2074.3,0.14106577]
[1617477335905,2.90695,2074.5,2074.4,0.14106923]
[1617477336208,2.90695,2074.5,2074.2,0.14106972]
[1617477336606,2.90695,2074.5,2074.1,0.14106933]
[1617477336907,2.90695,2074.2,2074.1,0.14106933]
[1617477337708,5.33965,2074.2,2074.1,0.14106933]
[1617477337907,5.33965,2074.2,2073.6,9.99038013]
[1617477338107,5.33965,2074.2,2072.3,30.0]
[1617477338108,5.33965,2074.2,2073.5,9.99552473]
[1617477338309,5.33965,2074.2,2073.9,7.89646922]
[1617477339009,5.33965,2074.2,2073.8,7.8982632]
[1617477339410,5.33965,2074.2,2074.0,4.55387077]
[1617477339811,5.33965,2074.2,2073.5,7.9040778]
[1617477341112,5.33965,2074.2,2072.7,10.01183188]
[1617477341113,2.90695,2073.6,2072.8,12.91597747]
[1617477342313,2.90695,2073.6,2072.9,31.8229]
[1617477342514,2.90695,2073.6,2072.9,41.82596732]
[1617477342714,2.90695,2073.6,2073.2,9.9914272]
[1617477343119,2.90695,2073.6,2073.5,2.90695]
[1617477343419,2.90695,2073.6,2073.5,3.04803413]
[1617477346221,2.90695,2073.6,2073.5,3.0480516]
[1617477348021,2.90695,2073.6,2073.5,0.1411016]
[1617477348223,2.90695,2073.6,2073.5,9.08952795]
[1617477348522,5.00735,2073.6,2073.5,0.1411016]
[1617477348722,5.00735,2073.6,2073.4,8.95055296]
[1617477348922,5.00735,2073.6,2072.5,30.0]
[1617477348923,5.00735,2073.6,2073.3,8.95235113]
[1617477349423,5.00735,2073.6,2073.3,8.80235113]
[1617477349624,5.00735,2073.6,2072.8,10.00886588]
[1617477350626,5.00735,2073.6,2072.7,12.91637328]
[1617477351126,2.90695,2072.8,2072.7,12.91637328]
[1617477351326,5.02485,2072.8,2072.7,12.91637328]
[1617477351527,5.02485,2072.8,2072.7,10.00942328]
[1617477352128,56.1644,2072.7,2072.5,10.01390731]
[1617477352527,56.1644,2072.7,2072.4,10.01178671]
[1617477352728,56.1644,2072.7,2072.3,10.01469096]
[1617477353030,2.90695,2072.4,2072.3,10.01469096]
[1617477353929,2.90695,2072.4,2072.3,30.0]
[1617477354130,2.90695,2072.4,2072.3,30.14113354]
[1617477355130,2.90695,2072.4,2072.3,33.04808354]
[1617477355531,13.6499,2073.7,2072.3,33.04808354]
[1617477355830,93.0254,2073.7,2072.3,33.04808354]
[1617477356031,93.0254,2073.7,2072.5,10.00965286]
[1617477356229,13.6499,2073.7,2072.5,10.00965286]
[1617477356429,13.6499,2073.7,2073.4,7.90026224]
[1617477356830,13.6499,2073.7,2073.5,0.14113058]
[1617477357029,32.0,2074.2,2073.5,0.14113058]
[1617477357329,0.9529,2074.3,2073.4,0.14113722]
[1617477357330,2.0,2073.5,2073.4,0.14113722]
[1617477357529,2.0,2073.5,2073.2,6.84688451]
[1617477357829,34.66955,2073.6,2073.1,6.84882874]
[1617477358129,4.66955,2073.6,2073.1,6.84882874]
[1617477358330,2.90695,2073.6,2073.5,5.79358387]
[1617477358633,2.90695,2073.6,2073.3,6.84302533]
[1617477359031,2.90695,2073.6,2073.5,6.8394028]
[1617477359232,2.90695,2073.6,2073.5,9.1088028]
[1617477359434,2.90695,2073.6,2073.5,2.2694]
[1617477359835,2.90695,2073.6,2073.5,10.14980132]
[1617477360534,4.47505,2073.6,2073.4,7.87623988]
[1617477360734,4.47505,2073.6,2073.3,7.87813832]
[1617477361336,4.47505,2073.6,2072.0,30.0]
[1617477361337,4.47505,2073.6,2073.2,7.88052328]
[1617477362544,4.47505,2073.6,2073.1,7.9084774]
[1617477362745,4.47505,2073.6,2073.5,6.85572865]
[1617477362945,78.03815,2073.6,2073.5,6.85572865]
[1617477363145,78.03815,2073.6,2073.5,6.99685695]
[1617477363849,78.03815,2073.6,2073.5,0.1411283]
[1617477365147,78.03815,2073.6,2073.4,6.99987301]
[1617477365549,78.03815,2073.6,2073.5,0.14113287]
[1617477366050,78.03815,2073.6,2073.4,6.04987408]
[1617477366251,78.03815,2073.6,2072.9,7.91452705]
[1617477366451,78.03815,2073.6,2072.4,8.97306212]
[1617477366851,78.03815,2073.6,2073.5,5.8089179]
[1617477367152,108.03815,2073.6,2072.2,8.97754362]
[1617477367551,110.03815,2073.6,2073.5,6.407e-05]
[1617477367852,110.03815,2073.6,2071.9,8.98402419]
[1617477368351,110.03815,2073.6,2071.8,8.98434063]
[1617477369152,107.1312,2073.6,2072.2,2.90695]
[1617477370554,77.1312,2073.6,2072.2,4.83205]
[1617477371055,77.1312,2073.6,2072.2,43.80655398]
[1617477371258,75.1312,2073.6,2072.7,2.90695]
[1617477371657,75.1312,2073.6,2072.8,0.14113194]
[1617477372058,73.5631,2073.6,2072.8,0.14113194]
[1617477372559,73.5631,2073.6,2073.0,30.0]
[1617477372859,73.5631,2073.6,2073.1,0.1410989]
[1617477373159,76.47005,2073.6,2073.5,2.90695]
[1617477373659,2.90695,2073.6,2073.5,3.04804353]
[1617477374161,2.90695,2073.6,2073.5,0.14109353]
[1617477374361,2.90695,2073.6,2073.2,8.96500986]
[1617477374561,4.48715,2073.6,2073.0,8.97050914]
[1617477374961,4.48715,2073.6,2072.9,8.97962501]
[1617477375164,2.90695,2073.0,2072.9,38.97962501]
[1617477375362,70.5935,2074.3,2072.9,30.0]
[1617477375563,70.5935,2074.3,2072.9,32.5951]
[1617477376061,70.5935,2074.3,2073.6,30.0]
[1617477376461,70.5935,2074.3,2073.6,38.95739917]
[1617477376663,70.5935,2074.3,2074.0,7.90301353]
[1617477376862,70.5935,2074.3,2074.0,10.25291353]
[1617477377164,70.5935,2074.3,2074.2,2.90695]
[1617477377365,13.9346,2075.2,2074.2,2.90695]
[1617477377764,13.9346,2075.2,2075.0,7.35284183]
[1617477378264,30.0,2076.2,2075.0,7.35284183]
[1617477378265,2.0,2076.1,2075.1,5.79378651]
[1617477378666,2.0,2076.1,2075.3,4.73982152]
[1617477378866,30.0,2076.0,2075.3,4.73982152]
[1617477379065,2.0,2075.9,2075.4,4.73899061]
[1617477379366,2.90695,2075.5,2075.4,4.73899061]
[1617477379669,2.90695,2075.5,2074.3,7.90061797]
[1617477379670,2.90695,2075.5,2075.3,4.73836188]
[1617477380367,2.90695,2075.5,2075.4,4.73868673]
[1617477380667,2.90695,2075.5,2075.3,4.73919161]
[1617477381669,2.90695,2075.5,2075.4,4.7386438]
[1617477382073,2.90695,2075.5,2075.3,5.78986599]
[1617477382470,2.90695,2075.5,2075.4,5.78805692]
[1617477384069,2.90695,2075.5,2075.3,8.19880088]
[1617477384368,2.90695,2075.5,2075.3,5.78880088]
[1617477384572,2.90695,2075.5,2075.4,5.78867681]
[1617477384871,2.90695,2075.5,2075.4,4.73213455]
[1617477385871,2.90695,2075.5,2075.3,4.73014414]
[1617477387373,2.90695,2075.5,2075.2,4.73096225]
[1617477387874,2.90695,2075.5,2074.7,54.6087]
[1617477387875,2.90695,2075.5,2075.3,4.73024827]
[1617477388175,2.90695,2075.5,2075.3,3.99994827]
[1617477390278,2.90695,2075.5,2075.1,5.78141456]
[1617477390574,2.90695,2075.5,2075.2,5.78022234]
[1617477391776,2.90695,2075.5,2075.1,5.78026373]
[1617477392076,2.90695,2075.5,2075.2,5.78006614]
[1617477395881,2.90695,2075.5,2075.0,5.78622876]
[1617477397086,2.90695,2075.5,2075.1,5.78536283]
[1617477397587,2.0,2076.2,2075.1,5.50866283]
[1617477397588,2.90695,2075.2,2075.1,5.50866283]
[1617477399988,2.90695,2075.2,2074.8,9.74266687]
[1617477401389,2.90695,2074.9,2074.8,9.74266687]
[1617477402692,2.90695,2074.9,2074.8,9.88368898]
[1617477403191,2.90695,2074.9,2074.8,9.74266687]
[1617477403391,2.90695,2074.9,2074.8,9.88369126]
[1617477403992,12.716,2076.3,2074.8,33.04797439]
[1617477404493,12.716,2076.3,2075.6,4.72861488]
[1617477404693,5.098,2076.3,2075.7,4.72736451]
[1617477405494,2.90695,2075.8,2075.7,2.90695]
[1617477406395,2.90695,2075.8,2075.6,1.569]
[1617477407494,2.90695,2075.8,2075.7,2.90695]
[1617477408996,2.90695,2075.8,2075.7,32.90695]
[1617477411096,2.90695,2075.8,2075.7,2.90695]
[1617477413701,2.90695,2075.8,2075.2,4.71514982]
[1617477414003,2.90695,2075.8,2075.1,4.7154725]
[1617477414204,2.90695,2075.8,2075.2,4.71495185]
[1617477415404,2.90695,2075.8,2075.2,34.71495185]
[1617477415604,2.90695,2075.8,2075.7,2.90695]
[1617477426321,2.90695,2075.8,2075.2,30.0]
[1617477427024,2.90695,2075.8,2074.9,4.70614201]
[1617477427422,2.90695,2075.8,2074.5,35.75520963]
[1617477427423,2.90695,2075.8,2074.7,4.70880788]
[1617477427623,2.1917,2075.9,2074.5,32.90695]
[1617477427624,2.90695,2074.8,2074.5,32.90695]
[1617477427923,4.98415,2074.8,2074.5,32.90695]
[1617477428525,4.98415,2074.8,2074.5,37.61868575]
[1617477428924,4.98415,2074.8,2074.5,32.90695]
[1617477429324,4.98415,2074.8,2074.5,37.61822457]
[1617477431325,4.98415,2074.8,2074.6,0.14103347]
[1617477431526,4.98415,2074.8,2074.7,4.71377961]
[1617477431826,4.98415,2074.8,2074.7,3.83537961]
[1617477432026,4.98415,2074.8,2074.3,5.76566405]
[1617477432426,4.98415,2074.8,2074.0,5.76924466]
[1617477432926,4.98415,2074.8,2074.1,0.14106359]
[1617477433531,2.90695,2074.2,2074.1,0.14106359]
[1617477434128,2.90695,2074.2,2073.9,0.14106376]
[1617477435028,2.90695,2074.2,2073.9,36.9630155]
[1617477435227,0.9548,2075.7,2073.9,36.9630155]
[1617477435428,13.7042,2075.8,2074.0,0.14104585]
[1617477435629,13.7042,2075.8,2074.6,2.90695]
[1617477436028,13.7042,2075.8,2074.7,0.14104557]
[1617477437630,2.90695,2074.8,2074.7,0.14104557]
[1617477440540,13.7042,2075.8,2074.7,2.12514557]
[1617477440739,13.7042,2075.8,2074.8,30.0]
[1617477440939,13.7042,2075.8,2074.8,30.14103086]
[1617477441241,5.098,2076.3,2074.9,0.1410231]
[1617477441638,5.098,2076.3,2075.4,2.90695]
[1617477442039,5.098,2076.3,2075.5,0.14101843]
[1617477442737,5.098,2076.3,2075.3,0.14101951]
[1617477443239,5.098,2076.3,2075.2,0.14101867]
[1617477443439,5.098,2076.3,2075.4,0.14102076]
[1617477443739,2.90695,2075.5,2075.3,0.14102099]
[1617477444141,2.90695,2075.5,2075.2,0.14102223]
[1617477444439,2.90695,2075.5,2075.4,0.14101823]
[1617477444639,2.90695,2075.5,2075.3,1.6888]
[1617477445139,2.90695,2075.5,2075.4,0.14101526]
[1617477446742,2.90695,2075.5,2075.3,0.14102027]
[1617477446943,2.90695,2075.5,2075.4,0.14102046]
[1617477447345,2.90695,2075.5,2075.2,4.85003843]
[1617477447543,2.90695,2075.5,2075.3,0.1410185]
[1617477447746,2.90695,2075.5,2075.4,4.71561388]
[1617477448147,2.90695,2075.5,2075.4,0.14101783]
[1617477448548,2.90695,2075.5,2075.4,4.85577876]
[1617477449751,2.90695,2075.5,2075.4,0.14101783]
[1617477450153,2.90695,2075.5,2075.4,4.85256847]
[1617477452558,2.90695,2075.5,2075.4,5.91155836]
[1617477452859,2.90695,2075.5,2075.4,0.14101783]
[1617477453962,2.90695,2075.5,2075.4,5.90980514]
[1617477454661,2.90695,2075.5,2075.4,0.14101783]
[1617477455062,2.90695,2075.5,2075.2,0.14102191]
[1617477455762,2.90695,2075.5,2075.3,2.90695]
[1617477456363,2.90695,2075.5,2075.4,0.14101246]
[1617477458663,2.90695,2075.5,2075.3,58.20201493]
[1617477458963,2.90695,2075.5,2075.4,0.14101231]
[1617477463073,2.90695,2075.5,2075.3,0.1410149]
[1617477463475,2.90695,2075.5,2075.3,6.98000221]
[1617477463975,2.90695,2075.5,2075.4,0.14100789]
[1617477464375,2.90695,2075.5,2075.3,8.04617385]
[1617477464677,2.90695,2075.5,2075.4,0.1410042]
[1617477465376,2.90695,2075.5,2075.4,8.04219866]
[1617477465876,2.90695,2075.5,2075.4,10.94914866]
[1617477468077,2.90695,2075.5,2075.4,3.0479542]
[1617477469578,2.90695,2075.5,2075.4,0.1410042]
[1617477474384,2.90695,2075.5,2075.4,8.05684529]
[1617477475084,2.90695,2075.5,2075.4,0.1410042]
[1617477475485,2.90695,2075.5,2075.4,8.05661183]
[1617477477686,2.90695,2075.5,2075.4,0.1410042]
[1617477481687,2.90695,2075.5,2075.4,2.6410042]
[1617477481886,2.90695,2075.5,2075.4,32.6410042]
[1617477482291,2.90695,2075.5,2075.4,40.54643203]
[1617477482588,2.90695,2075.5,2075.4,32.6410042]
[1617477482791,5.098,2076.3,2075.4,41.58945868]
[1617477483388,5.098,2076.3,2075.9,39.48686816]
[1617477483587,5.098,2076.3,2075.9,31.594]
[1617477483790,5.098,2076.3,2075.9,31.73496763]
[1617477484088,5.098,2076.3,2075.9,34.64191763]
[1617477484488,35.0034,2076.0,2075.9,34.64191763]
[1617477484890,14.0577,2076.0,2075.9,34.64191763]
[1617477485091,13.0,2076.6,2075.9,44.61095286]
[1617477485291,13.0,2076.6,2075.9,34.64191763]
[1617477485592,13.0,2076.6,2076.4,8.91655511]
[1617477485892,11.2517,2076.6,2076.5,41.96381833]
[1617477486091,10.036,2076.6,2076.5,41.96381833]
[1617477486293,10.036,2076.6,2076.5,33.04785496]
[1617477488895,10.036,2076.6,2076.5,43.00315509]
[1617477489093,10.036,2076.6,2076.5,33.04785496]
[1617477490900,13.3452,2077.9,2076.5,33.04785496]
[1617477491200,13.3452,2077.9,2076.5,43.0029486]
[1617477491403,13.3452,2077.9,2077.6,7.85163274]
[1617477491600,13.3452,2077.9,2077.7,30.0]
[1617477492000,13.3452,2077.9,2077.8,32.90695]
[1617477493405,13.3452,2077.9,2077.8,30.0]
[1617477498815,13.3452,2077.9,2077.4,30.0]
[1617477500117,13.3452,2077.9,2077.8,32.90695]
[1617477501319,13.3452,2077.9,2077.8,98.29925]
[1617477513935,13.3452,2077.9,2077.8,33.86445]
[1617477514635,13.3452,2077.9,2077.8,32.90695]
[1617477521348,13.3452,2077.9,2077.8,30.0]
[1617477521648,13.3452,2077.9,2077.2,30.0]
[1617477522451,13.3452,2077.9,2077.5,30.0]
[1617477523851,13.3452,2077.9,2077.5,32.3542]
[1617477524352,16.25215,2077.9,2077.8,32.90695]
[1617477527957,13.3452,2077.9,2077.8,32.90695]
[1617477528159,13.3452,2077.9,2077.8,34.81225]
[1617477531262,13.256,2077.9,2077.8,34.81225]
[1617477531864,13.0,2079.0,2077.8,34.81225]
[1617477532464,15.90695,2079.0,2078.9,2.90695]
[1617477532666,15.90695,2079.0,2078.9,35.03705]
[1617477533067,13.0,2079.0,2078.9,35.03705]
[1617477534371,15.90695,2079.0,2078.9,32.1301]
[1617477536274,15.90695,2079.0,2078.9,32.27090941]
[1617477537174,15.90695,2079.0,2078.9,20.27090941]
[1617477537374,15.90695,2079.0,2078.9,2.27090941]
[1617477537575,15.90695,2079.0,2078.9,0.14080941]
[1617477537976,15.90695,2079.0,2078.6,0.14081369]
[1617477538176,15.90695,2079.0,2078.9,0.14080894]
[1617477538577,15.90695,2079.0,2078.6,0.14080894]
[1617477538776,15.90695,2079.0,2078.5,64.5013]
[1617477538777,15.90695,2079.0,2078.9,0.14080477]
[1617477539180,17.90695,2079.0,2078.6,0.14080109]
[1617477539382,17.44485,2079.0,2078.6,0.14080109]
[1617477539579,17.44485,2079.0,2078.9,0.14081033]
[1617477539780,17.44485,2079.0,2078.7,0.1408089]
[1617477540080,17.44485,2079.0,2078.3,0.14081262]
[1617477540579,4.92655,2078.4,2078.3,0.14081262]
[1617477541284,6.92655,2078.4,2078.3,0.14081262]
[1617477541481,6.92655,2078.4,2077.6,0.14083829]
[1617477541681,6.92655,2078.4,2078.3,0.14084349]
[1617477542081,6.92655,2078.4,2077.6,0.14084622]
[1617477542380,4.0196,2078.4,2078.3,0.14084679]
[1617477542785,4.0196,2078.4,2077.6,0.14084813]
[1617477542982,4.0196,2078.4,2078.3,0.14084835]
[1617477543484,4.0196,2078.4,2077.6,0.14084825]
[1617477543781,4.0196,2078.4,2078.3,0.14084964]
[1617477543983,4.0196,2078.4,2077.7,0.14085194]
[1617477544182,4.0196,2078.4,2078.3,0.14085256]
[1617477544482,6.92655,2078.4,2078.3,0.14085256]
[1617477544684,6.92655,2078.4,2077.4,0.14085978]
[1617477544984,6.92655,2078.4,2077.3,54.9888]
[1617477545287,6.92655,2078.4,2077.4,0.14087749]
[1617477545488,36.92655,2078.4,2077.4,0.14087749]
[1617477545688,65.6446,2078.3,2077.4,0.14087749]
[1617477545887,2.0,2078.2,2077.0,0.14089478]
[1617477546290,2.0,2078.2,2076.8,0.14089953]
[1617477546590,5.24065,2076.9,2076.7,0.14089986]
[1617477546990,5.24065,2076.9,2076.6,0.14090606]
[1617477547492,5.24065,2076.9,2076.6,4.85822068]
[1617477547793,5.24065,2076.9,2076.6,4.71731462]
[1617477547992,5.24065,2076.9,2076.7,0.14090702]
[1617477548292,2.90695,2076.9,2076.7,0.14090702]
[1617477548591,2.90695,2076.9,2076.8,7.6194681]
[1617477548891,2.90695,2076.9,2076.8,7.76035602]
[1617477549092,2.90695,2076.9,2076.8,4.85340602]
[1617477550094,2.90695,2076.9,2076.8,0.14088792]
[1617477550294,2.90695,2076.9,2076.8,5.88337742]
[1617477550493,2.90695,2076.9,2076.8,38.79032742]
[1617477551394,2.90695,2076.9,2076.8,33.04783792]
[1617477552196,13.2071,2078.6,2076.8,33.04783792]
[1617477552396,13.2071,2078.6,2077.8,2.90695]
[1617477552596,2.90695,2078.0,2077.8,2.90695]
[1617477552997,2.90695,2078.0,2077.9,0.14084992]
[1617477553198,2.90695,2078.0,2077.3,34.69619206]
[1617477553199,2.90695,2078.0,2077.6,74.2945]
[1617477553598,2.90695,2078.0,2077.7,0.14084936]
[1617477556903,2.90695,2078.0,2077.7,4.84221212]
[1617477557305,2.90695,2078.0,2077.8,0.14085666]
[1617477557704,2.90695,2078.0,2077.7,4.84179484]
[1617477558006,2.90695,2078.0,2077.8,0.14085088]
[1617477558904,2.90695,2078.0,2077.8,4.84639628]
[1617477559304,2.90695,2078.0,2077.9,0.14084574]
[1617477559504,2.90695,2078.0,2077.9,4.84984139]
[1617477559704,2.90695,2078.0,2077.9,34.84984139]
[1617477559905,2.90695,2078.0,2077.9,30.14084574]
[1617477560306,2.90695,2078.0,2077.9,35.898435]
[1617477560508,2.90695,2078.0,2077.9,38.805385]
[1617477560907,2.90695,2078.0,2077.9,33.04779574]
[1617477561306,2.90695,2078.0,2077.9,39.84447826]
[1617477561906,2.90695,2078.0,2077.9,33.04779574]
[1617477565010,13.2071,2078.6,2077.9,33.04779574]
[1617477565411,13.2071,2078.6,2078.0,0.14078801]
[1617477565613,13.2071,2078.6,2078.2,6.78888978]
[1617477565813,13.2071,2078.6,2078.3,30.0]
[1617477566014,13.2071,2078.6,2078.3,30.14078752]
[1617477566311,13.2071,2078.6,2078.5,30.0]
[1617477566611,16.11405,2078.6,2078.5,32.90695]
[1617477566911,16.11405,2078.6,2078.5,33.04773978]
[1617477567814,13.2071,2078.6,2078.5,33.04773978]
[1617477568714,13.2071,2078.6,2078.5,41.98628538]
[1617477568914,13.2071,2078.6,2078.5,33.04773978]
[1617477569317,13.0,2079.0,2078.5,33.04773978]
[1617477569817,13.0,2079.0,2078.7,8.93279364]
[1617477570018,13.0,2079.0,2078.8,38.93123288]
[1617477570418,13.0,2079.0,2078.9,0.14077221]
[1617477570617,13.0,2079.0,2078.9,3.04772221]
[1617477570821,13.0,2079.0,2078.9,33.04772221]
[1617477571319,13.0,2079.0,2078.9,32.90695]
[1617477571719,13.0,2079.0,2078.9,39.71706679]
[1617477572220,13.0,2079.0,2078.9,35.15937178]
[1617477572621,15.90695,2079.0,2078.9,35.15937178]
[1617477573121,15.90695,2079.0,2078.9,32.90695]
[1617477574123,15.90695,2079.0,2078.9,32.89395]
[1617477574524,15.90695,2079.0,2078.9,35.76799756]
[1617477574723,15.90695,2079.0,2078.9,5.76799756]
[1617477574927,15.90695,2079.0,2078.8,61.0023]
[1617477574928,15.90695,2079.0,2078.8,66.7723941]
[1617477575430,15.90695,2079.0,2078.8,35.7700941]
[1617477575634,3.51,2079.0,2078.8,30.0]
[1617477576032,12.8474,2080.4,2079.1,30.0]
[1617477576435,12.8474,2080.4,2080.2,4.70478166]
[1617477576735,12.8474,2080.4,2080.3,27.09305]
[1617477577134,12.8474,2080.4,2080.3,31.79399537]
[1617477577536,12.8474,2080.4,2080.3,27.09305]
[1617477578340,12.8474,2080.4,2080.3,33.87317167]
[1617477578536,12.2063,2080.4,2080.3,33.87317167]
[1617477578737,11.8822,2080.4,2080.3,36.78012167]
[1617477578937,11.8822,2080.4,2080.3,30.0]
[1617477579137,2.90695,2081.4,2080.3,30.0]
[1617477579437,2.0,2082.9,2080.3,30.0]
[1617477579637,2.0,2082.9,2081.1,4.69234]
[1617477579838,2.0,2082.7,2082.2,57.4854]
[1617477580137,2.0,2082.7,2082.2,59.5156]
[1617477580538,13.7351,2082.8,2082.2,59.5156]
[1617477580741,2.90695,2082.3,2082.2,59.5156]
[1617477581941,2.90695,2082.3,2082.2,57.4854]
[1617477583144,2.90695,2082.3,2082.2,56.7719]
[1617477585947,2.90695,2082.3,2081.2,2.90695]
[1617477586547,4.83565,2082.3,2081.1,79.6989]
[1617477586748,2.90695,2081.2,2081.1,79.6989]
[1617477586948,2.90695,2081.2,2080.6,2.90695]
[1617477587148,2.90695,2081.2,2080.6,2.886955]
[1617477588554,2.90695,2081.2,2080.3,79.7321]
[1617477588754,2.90695,2080.7,2080.3,82.63905]
[1617477589257,0.9657,2081.8,2080.3,82.63905]
[1617477589456,27.9453,2082.2,2080.3,2.90695]
[1617477589754,27.9453,2082.2,2080.3,5.15755]
[1617477590157,27.9453,2082.2,2081.3,67.2396]
[1617477590659,2.90695,2081.4,2081.3,67.2396]
[1617477596872,2.90695,2081.4,2081.3,70.14655]
[1617477600274,2.90695,2081.4,2081.3,67.2396]
[1617477601777,27.9453,2082.2,2081.3,67.2396]
[1617477602683,27.9453,2082.2,2080.9,1.7663]
[1617477602879,27.9453,2082.2,2082.0,2.90695]
[1617477603279,27.9453,2082.2,2080.9,1.7663]
[1617477603479,27.9453,2082.2,2080.6,72.5549]
[1617477604883,27.9453,2082.2,2081.4,2.90695]
[1617477605985,27.9453,2082.2,2080.6,75.0541]
[1617477606186,30.4118,2082.2,2080.6,72.5549]
[1617477606687,32.4118,2082.2,2080.6,72.5549]
[1617477606886,2.90695,2081.2,2081.1,2.90695]
[1617477608195,4.83955,2081.2,2080.1,30.0]
[1617477608888,1.9326,2081.2,2080.9,2.90695]
[1617477609088,1.9326,2081.2,2080.1,30.0]
[1617477609497,1.9326,2081.2,2079.7,66.4241]
[1617477609789,12.7953,2081.1,2079.7,66.4241]
[1617477610389,26.3927,2081.1,2079.7,66.4241]
[1617477610593,28.3927,2081.1,2079.7,66.4241]
[1617477610889,28.3927,2081.1,2080.0,2.90695]
[1617477611490,58.3927,2081.1,2080.0,2.90695]
[1617477611792,58.3927,2081.1,2079.7,66.4241]
[1617477612494,28.3927,2081.1,2079.7,66.4241]
[1617477612892,28.3927,2081.1,2080.1,2.90695]
[1617477613293,30.0,2081.0,2079.7,66.4241]
[1617477613494,2.0,2080.9,2079.7,66.4241]
[1617477613693,30.0,2080.8,2079.7,66.4241]
[1617477613895,2.0,2080.7,2079.7,66.4241]
[1617477614093,32.0,2080.7,2079.7,66.4241]
[1617477614297,34.2954,2080.7,2078.8,30.0]
[1617477614796,34.2954,2080.7,2079.5,2.90695]
[1617477616795,2.90695,2079.6,2079.5,2.90695]
[1617477617898,2.90695,2079.6,2078.4,57.9565]
[1617477618699,13.8551,2079.5,2078.4,57.9565]
[1617477618898,13.8551,2079.5,2079.0,2.90695]
[1617477621000,13.8551,2079.5,2079.4,2.90695]
[1617477621403,14.8203,2079.5,2079.4,2.90695]
[1617477622905,17.72725,2079.5,2079.4,2.90695]
[1617477623505,17.72725,2079.5,2078.7,4.67786402]
[1617477623705,17.72725,2079.5,2078.6,34.68047486]
[1617477623904,17.72725,2079.5,2078.6,4.68047486]
[1617477624106,17.72725,2079.5,2078.8,0.14071386]
[1617477624307,17.72725,2079.5,2078.7,0.14071367]
[1617477624808,2.0,2079.4,2078.7,0.14071367]
[1617477625108,2.0,2079.4,2079.1,2.90695]
[1617477625709,13.8551,2079.5,2079.1,2.90695]
[1617477625910,13.8551,2079.5,2079.1,32.90695]
[1617477626210,13.8551,2079.5,2079.2,0.14068994]
[1617477627009,13.8551,2079.5,2079.4,2.90695]
[1617477630718,13.8551,2079.5,2079.4,4.51445]
[1617477631518,13.8551,2079.5,2079.4,4.65514257]
[1617477633023,16.76205,2079.5,2079.4,4.65514257]
[1617477635222,13.8551,2079.5,2079.4,4.65514257]
[1617477637125,13.8551,2079.5,2079.4,34.65514257]
[1617477637527,13.8551,2079.5,2079.4,42.46873962]
[1617477637931,30.0,2082.1,2079.6,30.0]
[1617477638130,18.3403,2081.7,2079.6,30.0]
[1617477638432,63.4636,2081.7,2080.7,4.68349966]
[1617477638731,63.4636,2081.7,2080.6,4.6844108]
[1617477639031,63.4636,2081.7,2080.8,3.04760095]
[1617477639232,63.4636,2081.7,2080.8,2.90695]
[1617477639434,63.4636,2081.7,2080.7,0.14065025]
[1617477639632,33.4636,2081.7,2080.9,0.14065198]
[1617477639834,31.4636,2081.7,2080.9,1.8018]
[1617477640034,31.4636,2081.7,2081.6,58.4175]
[1617477640634,28.9366,2081.7,2081.6,58.55809994]
[1617477641036,31.84355,2081.7,2081.6,61.46504994]